[Event "*** SCC Grand Prix: Titled Tuesday Blitz"]
[Site "Chess.com"]
[Date "2020.10.06"]
[Round "1"]
[White "FMKonstantin_Twitch"]
[Black "XxPetroffsxX"]
[Result "1-0"]
[WhiteElo "2540"]
[BlackElo "2207"]
[TimeControl "180+1"]
[EndTime "10:05:21 PDT"]
[Termination "FMKonstantin_Twitch won by resignation"]

1. e4 {[%clk 0:03:00.3]} 1... e5 {[%clk 0:02:45]} 2. Nf3 {[%clk 0:02:59.9]} 2...
Nc6 {[%clk 0:02:45]} 3. Bb5 {[%clk 0:03:00.5]} 3... Nf6 {[%clk 0:02:44.2]} 4.
O-O {[%clk 0:03:00.3]} 4... Nxe4 {[%clk 0:02:43.8]} 5. Re1 {[%clk 0:03:00.6]}
5... Nd6 {[%clk 0:02:44.3]} 6. a4 {[%clk 0:03:00.6]} 6... Be7 {[%clk 0:02:42.3]}
7. Nc3 {[%clk 0:03:00.4]} 7... O-O {[%clk 0:02:41.8]} 8. d4 {[%clk 0:03:00]}
8... exd4 {[%clk 0:02:41.5]} 9. Nd5 {[%clk 0:02:59.1]} 9... Bf6 {[%clk
0:02:38.6]} 10. Bf4 {[%clk 0:02:57.9]} 10... a6 {[%clk 0:02:33.5]} 11. Bd3
{[%clk 0:02:55.5]} 11... g6 {[%clk 0:02:23.2]} 12. Bxd6 {[%clk 0:02:45.2]} 12...
cxd6 {[%clk 0:02:22.3]} 13. Qd2 {[%clk 0:02:40.6]} 13... Ne5 {[%clk 0:02:20.5]}
14. Be4 {[%clk 0:02:33.9]} 14... Nxf3+ {[%clk 0:02:19.8]} 15. Bxf3 {[%clk
0:02:33.8]} 15... Rb8 {[%clk 0:02:18.5]} 16. a5 {[%clk 0:02:33.7]} 16... Bg7
{[%clk 0:02:15.9]} 17. Ra4 {[%clk 0:02:25.8]} 17... Re8 {[%clk 0:02:15.2]} 18.
Rea1 {[%clk 0:02:23.7]} 18... h6 {[%clk 0:02:10.6]} 19. Rb4 {[%clk 0:02:20.4]}
19... Qg5 {[%clk 0:02:07.7]} 20. Qxg5 {[%clk 0:02:17.4]} 20... hxg5 {[%clk
0:02:07.5]} 21. Rb6 {[%clk 0:02:17.5]} 21... f5 {[%clk 0:02:01.8]} 22. Kf1
{[%clk 0:02:11.3]} 22... Be5 {[%clk 0:02:00.6]} 23. g3 {[%clk 0:02:09.6]} 23...
g4 {[%clk 0:02:00]} 24. Be2 {[%clk 0:02:09.4]} 24... Kg7 {[%clk 0:01:58.9]} 25.
Bxa6 {[%clk 0:02:02.4]} 25... Rh8 {[%clk 0:01:49.1]} 26. Kg1 {[%clk 0:02:00.3]}
26... g5 {[%clk 0:01:40.2]} 27. Bd3 {[%clk 0:01:57.3]} 27... f4 {[%clk
0:01:39.4]} 28. a6 {[%clk 0:01:56.1]} 28... Ra8 {[%clk 0:01:30]} 29. a7 {[%clk
0:01:51.8]} 29... fxg3 {[%clk 0:01:06.9]} 30. hxg3 {[%clk 0:01:23.8]} 30... Kf7
{[%clk 0:00:53.5]} 31. Nc7 {[%clk 0:01:21.7]} 1-0

[Event "*** SCC Grand Prix: Titled Tuesday Blitz"]
[Site "Chess.com"]
[Date "2020.10.06"]
[Round "1"]
[White "PavelShkapenko"]
[Black "CM_rui"]
[Result "1-0"]
[WhiteElo "2709"]
[BlackElo "2370"]
[TimeControl "180+1"]
[EndTime "10:05:26 PDT"]
[Termination "PavelShkapenko won by resignation"]

1. e4 {[%clk 0:02:54.5]} 1... e5 {[%clk 0:03:00]} 2. Nf3 {[%clk 0:02:54.2]} 2...
Nc6 {[%clk 0:03:00.4]} 3. g3 {[%clk 0:02:52.2]} 3... Nf6 {[%clk 0:02:56.4]} 4.
d3 {[%clk 0:02:51.9]} 4... Bc5 {[%clk 0:02:55.1]} 5. Bg2 {[%clk 0:02:51.6]} 5...
O-O {[%clk 0:02:55.2]} 6. O-O {[%clk 0:02:51.8]} 6... d6 {[%clk 0:02:53.4]} 7.
c3 {[%clk 0:02:50.5]} 7... a5 {[%clk 0:02:53.2]} 8. a4 {[%clk 0:02:48.8]} 8...
h6 {[%clk 0:02:50.8]} 9. Na3 {[%clk 0:02:48.7]} 9... Be6 {[%clk 0:02:47.9]} 10.
Nb5 {[%clk 0:02:46]} 10... Bb6 {[%clk 0:02:29]} 11. Nd2 {[%clk 0:02:44.4]} 11...
d5 {[%clk 0:02:22.6]} 12. Qe2 {[%clk 0:02:36.1]} 12... Bg4 {[%clk 0:02:10.2]}
13. Qe1 {[%clk 0:02:24.3]} 13... dxe4 {[%clk 0:02:05.6]} 14. Nxe4 {[%clk
0:02:23.6]} 14... Nxe4 {[%clk 0:01:52]} 15. Qxe4 {[%clk 0:02:18.1]} 15... Qd7
{[%clk 0:01:49.1]} 16. Be3 {[%clk 0:01:50.4]} 16... Bf5 {[%clk 0:01:14.8]} 17.
Qf3 {[%clk 0:01:43.2]} 17... Bxe3 {[%clk 0:00:45.5]} 18. Qxe3 {[%clk 0:01:39.8]}
18... Rad8 {[%clk 0:00:33.9]} 19. Rfd1 {[%clk 0:01:25.7]} 19... Bxd3 {[%clk
0:00:29.9]} 20. Be4 {[%clk 0:01:22.4]} 1-0

[Event "*** SCC Grand Prix: Titled Tuesday Blitz"]
[Site "Chess.com"]
[Date "2020.10.06"]
[Round "1"]
[White "GMJustin"]
[Black "elohunter1999"]
[Result "0-1"]
[WhiteElo "2254"]
[BlackElo "2571"]
[TimeControl "180+1"]
[EndTime "10:05:30 PDT"]
[Termination "elohunter1999 won on time"]

1. e4 {[%clk 0:02:54.6]} 1... e5 {[%clk 0:02:59.5]} 2. f4 {[%clk 0:02:43]} 2...
d5 {[%clk 0:02:57.1]} 3. exd5 {[%clk 0:02:36.8]} 3... exf4 {[%clk 0:02:56.8]} 4.
Qf3 {[%clk 0:02:30.1]} 4... Nf6 {[%clk 0:02:52.2]} 5. Nc3 {[%clk 0:02:23.5]}
5... Bd6 {[%clk 0:02:51.8]} 6. Bb5+ {[%clk 0:02:20.1]} 6... c6 {[%clk
0:02:48.6]} 7. dxc6 {[%clk 0:02:17.1]} 7... O-O {[%clk 0:02:47.8]} 8. cxb7
{[%clk 0:01:38.8]} 8... Qe7+ {[%clk 0:02:47.5]} 9. Qe2 {[%clk 0:01:33.3]} 9...
Qxb7 {[%clk 0:02:47.3]} 10. Nf3 {[%clk 0:01:30.6]} 10... Nc6 {[%clk 0:02:38.3]}
11. O-O {[%clk 0:01:24.6]} 11... Re8 {[%clk 0:02:35.1]} 12. Qc4 {[%clk
0:01:14.3]} 12... Bd7 {[%clk 0:02:33.6]} 13. d4 {[%clk 0:01:07.6]} 13... a6
{[%clk 0:02:19.4]} 14. Ba4 {[%clk 0:00:58]} 14... Rac8 {[%clk 0:02:19.1]} 15.
Ng5 {[%clk 0:00:19.2]} 15... Nd8 {[%clk 0:02:15.3]} 16. Qb3 {[%clk 0:00:14.1]}
16... Qa7 {[%clk 0:02:08.2]} 17. Bxd7 {[%clk 0:00:10.7]} 17... Qxd4+ {[%clk
0:02:04.4]} 18. Kh1 {[%clk 0:00:09.8]} 18... Nxd7 {[%clk 0:02:05]} 19. Bxf4
{[%clk 0:00:09.1]} 19... Bxf4 {[%clk 0:01:56.1]} 20. Rad1 {[%clk 0:00:07.9]}
20... Qc4 {[%clk 0:01:50.4]} 21. Qxc4 {[%clk 0:00:05.3]} 21... Rxc4 {[%clk
0:01:51.3]} 22. Rxd7 {[%clk 0:00:03.1]} 22... Bxg5 {[%clk 0:01:50.7]} 23. h3
{[%clk 0:00:02]} 23... h5 {[%clk 0:01:41.3]} 24. Rd5 {[%clk 0:00:01.3]} 24...
Ne6 {[%clk 0:01:39.4]} 25. Ra5 {[%clk 0:00:01.4]} 25... Rb8 {[%clk 0:01:37.7]}
0-1

[Event "*** SCC Grand Prix: Titled Tuesday Blitz"]
[Site "Chess.com"]
[Date "2020.10.06"]
[Round "1"]
[White "CrazyMartian"]
[Black "johnathan113"]
[Result "0-1"]
[WhiteElo "2287"]
[BlackElo "2590"]
[TimeControl "180+1"]
[EndTime "10:05:35 PDT"]
[Termination "johnathan113 won by resignation"]

1. d4 {[%clk 0:02:59.2]} 1... Nf6 {[%clk 0:02:59.8]} 2. Bf4 {[%clk 0:02:50.5]}
2... g6 {[%clk 0:02:59.7]} 3. Nc3 {[%clk 0:02:50.1]} 3... Bg7 {[%clk 0:02:59.4]}
4. e4 {[%clk 0:02:50]} 4... d5 {[%clk 0:02:59.9]} 5. e5 {[%clk 0:02:47.9]} 5...
Ne4 {[%clk 0:02:59.7]} 6. Bd3 {[%clk 0:02:47.7]} 6... Nxc3 {[%clk 0:02:58.3]} 7.
bxc3 {[%clk 0:02:48.6]} 7... c5 {[%clk 0:02:58.9]} 8. Nf3 {[%clk 0:02:43.3]}
8... Qa5 {[%clk 0:02:57.6]} 9. Qd2 {[%clk 0:02:41.7]} 9... Bg4 {[%clk
0:02:54.7]} 10. Rb1 {[%clk 0:02:27.8]} 10... Bxf3 {[%clk 0:02:51.2]} 11. gxf3
{[%clk 0:02:26.1]} 11... c4 {[%clk 0:02:48.6]} 12. Be2 {[%clk 0:02:20.6]} 12...
b5 {[%clk 0:02:38.4]} 13. O-O {[%clk 0:02:19.6]} 13... O-O {[%clk 0:02:34.9]}
14. Bg3 {[%clk 0:02:12.6]} 14... Nc6 {[%clk 0:02:32.1]} 15. f4 {[%clk
0:02:11.1]} 15... e6 {[%clk 0:02:31]} 16. h4 {[%clk 0:01:59.5]} 16... h5 {[%clk
0:02:24.4]} 17. f5 {[%clk 0:01:56.6]} 17... exf5 {[%clk 0:02:23.7]} 18. Bf3
{[%clk 0:01:52]} 18... Rad8 {[%clk 0:02:07.1]} 19. Rfe1 {[%clk 0:01:48.2]} 19...
Rfe8 {[%clk 0:02:07.5]} 20. Bf4 {[%clk 0:01:45.7]} 20... a6 {[%clk 0:02:00.9]}
21. Kh2 {[%clk 0:01:45.3]} 21... Kh7 {[%clk 0:01:58.3]} 22. Rg1 {[%clk
0:01:27.1]} 22... Rd7 {[%clk 0:01:58.5]} 23. Qe2 {[%clk 0:01:10.3]} 23... Qxc3
{[%clk 0:01:50.2]} 24. Bxh5 {[%clk 0:00:13.4]} 24... Qxd4 {[%clk 0:01:49.9]} 25.
Qf3 {[%clk 0:00:07]} 25... Bxe5 {[%clk 0:01:48.6]} 26. Bxe5 {[%clk 0:00:06.4]}
26... Qxh4+ {[%clk 0:01:49]} 27. Kg2 {[%clk 0:00:05.4]} 27... Nxe5 {[%clk
0:01:47.3]} 28. Bxg6+ {[%clk 0:00:04.5]} 28... fxg6 {[%clk 0:01:46.4]} 29. Qe2
{[%clk 0:00:02.3]} 29... Qg4+ {[%clk 0:01:45.1]} 0-1

[Event "*** SCC Grand Prix: Titled Tuesday Blitz"]
[Site "Chess.com"]
[Date "2020.10.06"]
[Round "1"]
[White "tlomigtlis"]
[Black "AungTZ"]
[Result "1-0"]
[WhiteElo "2516"]
[BlackElo "2143"]
[TimeControl "180+1"]
[EndTime "10:05:38 PDT"]
[Termination "tlomigtlis won by resignation"]

1. d4 {[%clk 0:02:58.8]} 1... Nf6 {[%clk 0:02:57.9]} 2. c4 {[%clk 0:02:58.7]}
2... e6 {[%clk 0:02:57.1]} 3. Nc3 {[%clk 0:02:57.6]} 3... Bb4 {[%clk 0:02:56.8]}
4. Qc2 {[%clk 0:02:57.2]} 4... O-O {[%clk 0:02:55.8]} 5. a3 {[%clk 0:02:57.2]}
5... Bxc3+ {[%clk 0:02:54.8]} 6. Qxc3 {[%clk 0:02:58.1]} 6... b6 {[%clk
0:02:52.9]} 7. Bg5 {[%clk 0:02:58.1]} 7... Bb7 {[%clk 0:02:52.3]} 8. e3 {[%clk
0:02:58.4]} 8... d6 {[%clk 0:02:40.9]} 9. Ne2 {[%clk 0:02:58]} 9... Nbd7 {[%clk
0:02:40.7]} 10. Qc2 {[%clk 0:02:56.6]} 10... Qe8 {[%clk 0:02:38.9]} 11. Nc3
{[%clk 0:02:53.4]} 11... e5 {[%clk 0:02:36.7]} 12. d5 {[%clk 0:02:52.3]} 12...
c6 {[%clk 0:02:24.5]} 13. e4 {[%clk 0:02:46.9]} 13... cxd5 {[%clk 0:02:22]} 14.
exd5 {[%clk 0:02:47.8]} 14... a6 {[%clk 0:02:17.8]} 15. Bd3 {[%clk 0:02:45.8]}
15... Rc8 {[%clk 0:02:17.3]} 16. O-O {[%clk 0:02:44.1]} 16... b5 {[%clk
0:01:50.2]} 17. cxb5 {[%clk 0:02:41]} 17... Nxd5 {[%clk 0:01:49.4]} 18. bxa6
{[%clk 0:02:37.5]} 18... Ba8 {[%clk 0:01:48.3]} 19. Bxh7+ {[%clk 0:02:34.8]}
19... Kh8 {[%clk 0:01:45.4]} 20. Bf5 {[%clk 0:02:35.1]} 20... Nxc3 {[%clk
0:01:39.7]} 21. bxc3 {[%clk 0:02:36]} 21... f6 {[%clk 0:01:31.8]} 22. Be3 {[%clk
0:02:33.6]} 22... Rc4 {[%clk 0:01:21.7]} 23. Qd3 {[%clk 0:02:26.9]} 23... d5
{[%clk 0:01:15.3]} 24. Qe2 {[%clk 0:02:23]} 24... g6 {[%clk 0:00:54.2]} 25. Bd3
{[%clk 0:02:17.5]} 25... Rh4 {[%clk 0:00:44.3]} 26. Bb5 {[%clk 0:02:14.1]} 26...
Qe6 {[%clk 0:00:38.1]} 27. f3 {[%clk 0:02:06.2]} 27... Kg7 {[%clk 0:00:19.6]}
28. g3 {[%clk 0:02:04.4]} 28... Rh5 {[%clk 0:00:18.3]} 29. Rad1 {[%clk
0:02:04.2]} 29... Rfh8 {[%clk 0:00:17.7]} 30. Rf2 {[%clk 0:01:58.3]} 30... Nb6
{[%clk 0:00:14.8]} 31. f4 {[%clk 0:01:51.9]} 31... exf4 {[%clk 0:00:12.5]} 32.
Bxf4 {[%clk 0:01:47.3]} 32... Qxe2 {[%clk 0:00:10]} 33. Rxe2 {[%clk 0:01:48.2]}
33... Rd8 {[%clk 0:00:05.6]} 34. Bc7 {[%clk 0:01:46.3]} 1-0

[Event "*** SCC Grand Prix: Titled Tuesday Blitz"]
[Site "Chess.com"]
[Date "2020.10.06"]
[Round "1"]
[White "chessdjw"]
[Black "The_Machine04"]
[Result "1-0"]
[WhiteElo "2613"]
[BlackElo "2296"]
[TimeControl "180+1"]
[EndTime "10:05:40 PDT"]
[Termination "chessdjw won on time"]

1. c4 {[%clk 0:03:00.9]} 1... e6 {[%clk 0:02:56.7]} 2. Nc3 {[%clk 0:02:58.8]}
2... Nf6 {[%clk 0:02:53.3]} 3. Nf3 {[%clk 0:02:57.2]} 3... d5 {[%clk 0:02:44.8]}
4. e3 {[%clk 0:02:57.1]} 4... Be7 {[%clk 0:02:42]} 5. b3 {[%clk 0:02:56.8]} 5...
c5 {[%clk 0:02:37.1]} 6. cxd5 {[%clk 0:02:55.4]} 6... exd5 {[%clk 0:02:36.4]} 7.
Bb5+ {[%clk 0:02:50]} 7... Nc6 {[%clk 0:02:28.7]} 8. O-O {[%clk 0:02:45.7]} 8...
O-O {[%clk 0:02:27.3]} 9. d4 {[%clk 0:02:43.6]} 9... cxd4 {[%clk 0:02:10.9]} 10.
Nxd4 {[%clk 0:02:43]} 10... Nxd4 {[%clk 0:02:10.1]} 11. Qxd4 {[%clk 0:02:40.5]}
11... Be6 {[%clk 0:02:07.3]} 12. Bb2 {[%clk 0:02:36.7]} 12... Qd6 {[%clk
0:01:12.6]} 13. h3 {[%clk 0:02:29.2]} 13... Qb4 {[%clk 0:00:48.5]} 14. Rfd1
{[%clk 0:02:20]} 14... Rfd8 {[%clk 0:00:34.3]} 15. Rac1 {[%clk 0:02:05.8]} 15...
Qxd4 {[%clk 0:00:19.3]} 16. Rxd4 {[%clk 0:02:05.1]} 16... Bc5 {[%clk 0:00:18.2]}
17. Rdd1 {[%clk 0:02:01.6]} 17... a6 {[%clk 0:00:14]} 18. Be2 {[%clk 0:01:50.4]}
18... Ba7 {[%clk 0:00:13.2]} 19. Bf3 {[%clk 0:01:46.8]} 19... Rac8 {[%clk
0:00:08.8]} 20. Nxd5 {[%clk 0:01:23.5]} 20... Nxd5 {[%clk 0:00:04]} 21. Rxc8
{[%clk 0:01:22.5]} 21... Rxc8 {[%clk 0:00:03.8]} 22. Bxd5 {[%clk 0:01:22.4]}
22... Bxd5 {[%clk 0:00:02.2]} 23. Rxd5 {[%clk 0:01:23.3]} 1-0

[Event "*** SCC Grand Prix: Titled Tuesday Blitz"]
[Site "Chess.com"]
[Date "2020.10.06"]
[Round "1"]
[White "OldweakGM"]
[Black "fabianvivasz"]
[Result "1-0"]
[WhiteElo "2733"]
[BlackElo "2376"]
[TimeControl "180+1"]
[EndTime "10:05:42 PDT"]
[Termination "OldweakGM won on time"]

1. Nf3 {[%clk 0:02:56.6]} 1... c5 {[%clk 0:02:58.7]} 2. c4 {[%clk 0:02:55.3]}
2... Nf6 {[%clk 0:02:58.3]} 3. Nc3 {[%clk 0:02:52.7]} 3... d5 {[%clk 0:02:58.5]}
4. cxd5 {[%clk 0:02:51.6]} 4... Nxd5 {[%clk 0:02:59.4]} 5. e4 {[%clk 0:02:50.9]}
5... Nxc3 {[%clk 0:02:56.7]} 6. dxc3 {[%clk 0:02:50.5]} 6... Qxd1+ {[%clk
0:02:57.6]} 7. Kxd1 {[%clk 0:02:51.1]} 7... f6 {[%clk 0:02:56.7]} 8. Be3 {[%clk
0:02:50.1]} 8... e5 {[%clk 0:02:56.2]} 9. Kc2 {[%clk 0:02:49.8]} 9... Be6 {[%clk
0:02:53.8]} 10. Nd2 {[%clk 0:02:47.7]} 10... Nc6 {[%clk 0:02:53.6]} 11. Bc4
{[%clk 0:02:45.9]} 11... Kf7 {[%clk 0:02:46.7]} 12. a4 {[%clk 0:02:45.2]} 12...
Be7 {[%clk 0:02:44.4]} 13. f3 {[%clk 0:02:39]} 13... Rac8 {[%clk 0:02:37.2]} 14.
Bxe6+ {[%clk 0:02:36.8]} 14... Kxe6 {[%clk 0:02:36.5]} 15. Nc4 {[%clk
0:02:37.7]} 15... Rhd8 {[%clk 0:02:23.9]} 16. Kb3 {[%clk 0:02:26.1]} 16... b6
{[%clk 0:02:16.8]} 17. Rhd1 {[%clk 0:02:24.9]} 17... Rxd1 {[%clk 0:02:00.8]} 18.
Rxd1 {[%clk 0:02:24.3]} 18... Rd8 {[%clk 0:02:01.3]} 19. Rxd8 {[%clk 0:02:24.6]}
19... Bxd8 {[%clk 0:01:56.5]} 20. Bf2 {[%clk 0:02:24.7]} 20... g6 {[%clk
0:01:48.8]} 21. Ne3 {[%clk 0:02:24.2]} 21... Na5+ {[%clk 0:01:38.4]} 22. Kc2
{[%clk 0:02:21]} 22... c4 {[%clk 0:01:19]} 23. Nd5 {[%clk 0:02:16.8]} 23... f5
{[%clk 0:01:14.8]} 24. g4 {[%clk 0:02:15]} 24... fxg4 {[%clk 0:01:08.5]} 25.
fxg4 {[%clk 0:02:14.2]} 25... h5 {[%clk 0:01:00.4]} 26. gxh5 {[%clk 0:02:08.9]}
26... gxh5 {[%clk 0:01:01.3]} 27. Ne3 {[%clk 0:02:09.2]} 27... Bg5 {[%clk
0:00:57]} 28. Nf5 {[%clk 0:02:08.9]} 28... Kf6 {[%clk 0:00:48.2]} 29. Nd6 {[%clk
0:02:07.9]} 29... Bf4 {[%clk 0:00:41.9]} 30. h3 {[%clk 0:02:06.1]} 30... Ke6
{[%clk 0:00:32.4]} 31. Nb5 {[%clk 0:01:49.2]} 31... Nc6 {[%clk 0:00:27.8]} 32.
a5 {[%clk 0:01:49.5]} 32... bxa5 {[%clk 0:00:20.9]} 33. Na3 {[%clk 0:01:49.6]}
33... Bh6 {[%clk 0:00:03.1]} 34. Nxc4 {[%clk 0:01:49.4]} 34... Bf8 {[%clk
0:00:03]} 35. Kb3 {[%clk 0:01:49]} 1-0

[Event "*** SCC Grand Prix: Titled Tuesday Blitz"]
[Site "Chess.com"]
[Date "2020.10.06"]
[Round "1"]
[White "Fighter008"]
[Black "SergeyShtyka"]
[Result "1-0"]
[WhiteElo "2634"]
[BlackElo "2316"]
[TimeControl "180+1"]
[EndTime "10:05:47 PDT"]
[Termination "Fighter008 won by resignation"]

1. e4 {[%clk 0:03:00.6]} 1... c5 {[%clk 0:01:59.6]} 2. Nf3 {[%clk 0:02:58.8]}
2... Nc6 {[%clk 0:01:56.9]} 3. Bb5 {[%clk 0:02:58.2]} 3... Nd4 {[%clk
0:01:53.6]} 4. Nc3 {[%clk 0:02:57.3]} 4... a6 {[%clk 0:01:51.2]} 5. Be2 {[%clk
0:02:50.8]} 5... Nxe2 {[%clk 0:01:48.9]} 6. Qxe2 {[%clk 0:02:49.7]} 6... e6
{[%clk 0:01:47.8]} 7. d4 {[%clk 0:02:49.7]} 7... cxd4 {[%clk 0:01:46.9]} 8. Nxd4
{[%clk 0:02:50.6]} 8... d6 {[%clk 0:01:47.2]} 9. Be3 {[%clk 0:02:50.3]} 9... Nf6
{[%clk 0:01:47.1]} 10. O-O-O {[%clk 0:02:50.2]} 10... Be7 {[%clk 0:01:47.2]} 11.
g4 {[%clk 0:02:50.5]} 11... Nd7 {[%clk 0:01:35.1]} 12. h4 {[%clk 0:02:48.7]}
12... Bxh4 {[%clk 0:01:24.4]} 13. f4 {[%clk 0:02:48.4]} 13... Be7 {[%clk
0:01:20.7]} 14. g5 {[%clk 0:02:48.3]} 14... Nc5 {[%clk 0:01:17]} 15. Kb1 {[%clk
0:02:47.1]} 15... Bd7 {[%clk 0:01:14.2]} 16. Rh2 {[%clk 0:02:38.1]} 16... Qa5
{[%clk 0:01:09.8]} 17. Rdh1 {[%clk 0:02:32.8]} 17... O-O-O {[%clk 0:01:08.5]}
18. Qf2 {[%clk 0:02:30.6]} 18... Kb8 {[%clk 0:01:01.1]} 19. Nb3 {[%clk
0:02:28.3]} 19... Nxb3 {[%clk 0:01:00.3]} 20. axb3 {[%clk 0:02:29.2]} 20... Rc8
{[%clk 0:00:56.8]} 21. Rxh7 {[%clk 0:02:26.2]} 21... Rxh7 {[%clk 0:00:56.8]} 22.
Rxh7 {[%clk 0:02:27.1]} 22... Bf8 {[%clk 0:00:56.8]} 23. Bd4 {[%clk 0:02:23]}
23... e5 {[%clk 0:00:56]} 24. fxe5 {[%clk 0:02:20.5]} 24... dxe5 {[%clk
0:00:56.4]} 25. Qh2 {[%clk 0:02:18.9]} 25... Bd6 {[%clk 0:00:49.4]} 26. Rxg7
{[%clk 0:02:15.9]} 26... Be6 {[%clk 0:00:42.9]} 27. g6 {[%clk 0:02:06.7]} 27...
fxg6 {[%clk 0:00:36.5]} 28. Rxg6 {[%clk 0:02:06.5]} 28... Re8 {[%clk 0:00:36]}
29. Rg5 {[%clk 0:02:02.8]} 29... Bc8 {[%clk 0:00:36]} 30. Qh6 {[%clk 0:01:54.7]}
30... Bc7 {[%clk 0:00:34.4]} 31. Be3 {[%clk 0:01:50.9]} 31... Ka8 {[%clk
0:00:32]} 32. Rg1 {[%clk 0:01:47.2]} 32... Qb4 {[%clk 0:00:32.1]} 33. Nd5 {[%clk
0:01:46.1]} 33... Qd6 {[%clk 0:00:31.3]} 34. Rg6 {[%clk 0:01:36.7]} 34... Qd8
{[%clk 0:00:30.4]} 35. Bg5 {[%clk 0:01:32.2]} 35... Qd7 {[%clk 0:00:29.5]} 36.
Rg7 {[%clk 0:01:31.5]} 1-0

[Event "*** SCC Grand Prix: Titled Tuesday Blitz"]
[Site "Chess.com"]
[Date "2020.10.06"]
[Round "1"]
[White "ExtremeLearner"]
[Black "penguingm1"]
[Result "0-1"]
[WhiteElo "2444"]
[BlackElo "2869"]
[TimeControl "180+1"]
[EndTime "10:05:48 PDT"]
[Termination "penguingm1 won by resignation"]

1. d4 {[%clk 0:03:00.9]} 1... d5 {[%clk 0:02:51.4]} 2. Nf3 {[%clk 0:03:00.6]}
2... Nf6 {[%clk 0:02:33.9]} 3. g3 {[%clk 0:03:00.3]} 3... e6 {[%clk 0:02:24.9]}
4. Bg2 {[%clk 0:02:56.2]} 4... Nc6 {[%clk 0:02:23]} 5. O-O {[%clk 0:02:56.7]}
5... Bd6 {[%clk 0:02:22.9]} 6. c3 {[%clk 0:02:53.8]} 6... O-O {[%clk 0:02:20.7]}
7. Bg5 {[%clk 0:02:51.9]} 7... h6 {[%clk 0:02:20]} 8. Bxf6 {[%clk 0:02:50.9]}
8... Qxf6 {[%clk 0:02:20.9]} 9. Nbd2 {[%clk 0:02:51.8]} 9... Qd8 {[%clk
0:02:02.5]} 10. e4 {[%clk 0:02:49.5]} 10... b6 {[%clk 0:01:52.5]} 11. Re1 {[%clk
0:02:46.4]} 11... Bb7 {[%clk 0:01:48.3]} 12. h4 {[%clk 0:02:36.6]} 12... Re8
{[%clk 0:01:37.7]} 13. a4 {[%clk 0:02:12.1]} 13... Bf8 {[%clk 0:01:23.6]} 14.
Nh2 {[%clk 0:02:01.5]} 14... Nb8 {[%clk 0:01:19.8]} 15. e5 {[%clk 0:01:54]}
15... c5 {[%clk 0:01:19.6]} 16. Qg4 {[%clk 0:01:44.6]} 16... Nc6 {[%clk
0:01:05]} 17. Ndf3 {[%clk 0:01:20.8]} 17... Rc8 {[%clk 0:00:55.5]} 18. Nf1
{[%clk 0:01:06.5]} 18... Qc7 {[%clk 0:00:41.6]} 19. Ne3 {[%clk 0:01:03.3]} 19...
cxd4 {[%clk 0:00:41.3]} 20. cxd4 {[%clk 0:01:00.6]} 20... Nb4 {[%clk 0:00:41.6]}
21. Rec1 {[%clk 0:00:57.8]} 21... Qxc1+ {[%clk 0:00:33]} 22. Rxc1 {[%clk
0:00:57]} 22... Rxc1+ {[%clk 0:00:33.9]} 23. Kh2 {[%clk 0:00:57.9]} 23... Nd3
{[%clk 0:00:34.6]} 24. Qf4 {[%clk 0:00:44.9]} 24... Nxf4 {[%clk 0:00:34.7]} 0-1

[Event "*** SCC Grand Prix: Titled Tuesday Blitz"]
[Site "Chess.com"]
[Date "2020.10.06"]
[Round "1"]
[White "Fh2411"]
[Black "Kaponov"]
[Result "1-0"]
[WhiteElo "2535"]
[BlackElo "2186"]
[TimeControl "180+1"]
[EndTime "10:05:49 PDT"]
[Termination "Fh2411 won on time"]

1. d4 {[%clk 0:03:00.9]} 1... Nf6 {[%clk 0:02:49.4]} 2. Nf3 {[%clk 0:03:00.5]}
2... g6 {[%clk 0:02:46.4]} 3. c4 {[%clk 0:03:00.7]} 3... Bg7 {[%clk 0:02:46.3]}
4. Nc3 {[%clk 0:03:01.3]} 4... O-O {[%clk 0:02:46.1]} 5. e4 {[%clk 0:03:01.9]}
5... d6 {[%clk 0:02:46.2]} 6. h3 {[%clk 0:03:01.6]} 6... e5 {[%clk 0:02:44]} 7.
Be3 {[%clk 0:03:01.9]} 7... Nc6 {[%clk 0:02:40.2]} 8. d5 {[%clk 0:02:57.7]} 8...
Ne7 {[%clk 0:02:39.4]} 9. c5 {[%clk 0:02:58.2]} 9... Ne8 {[%clk 0:02:06.6]} 10.
Bb5 {[%clk 0:02:57.4]} 10... c6 {[%clk 0:01:45.7]} 11. dxc6 {[%clk 0:02:52]}
11... bxc6 {[%clk 0:01:44.7]} 12. Bc4 {[%clk 0:02:51.8]} 12... Qc7 {[%clk
0:01:36.5]} 13. O-O {[%clk 0:02:46.5]} 13... Bb7 {[%clk 0:01:28]} 14. cxd6
{[%clk 0:02:42.2]} 14... Nxd6 {[%clk 0:01:27.3]} 15. Bb3 {[%clk 0:02:40.3]}
15... Nb5 {[%clk 0:01:17.8]} 16. Rc1 {[%clk 0:02:33.2]} 16... Nd4 {[%clk
0:01:12.8]} 17. Nxd4 {[%clk 0:02:31]} 17... exd4 {[%clk 0:01:13]} 18. Bxd4
{[%clk 0:02:27.6]} 18... Rfd8 {[%clk 0:01:05.6]} 19. Nd5 {[%clk 0:01:23.3]}
19... Nxd5 {[%clk 0:00:25.3]} 20. exd5 {[%clk 0:01:16.9]} 20... Bxd4 {[%clk
0:00:03.2]} 21. Qxd4 {[%clk 0:01:16.6]} 21... Qa5 {[%clk 0:00:04.1]} 22. Qf4
{[%clk 0:01:10.9]} 22... cxd5 {[%clk 0:00:03.3]} 23. Rc7 {[%clk 0:01:10.8]} 1-0